Workbook

Sheet Bila D
A3: Carl Zeiss Meditec AG
A4: Konzern-Bilanz (IFRS) zum 30. Juni 2015
I6: Anhang | K6: 30. Juni 2015 | M6: 30. September 2014
K7: € Tsd. | M7: € Tsd.
B9: AKTIVA
B10: Geschäfts- oder Firmenwert | I10: (2e) (10) | K10: 165356 | M10: 158876
B11: Sonstige immaterielle Vermögenswerte | I11: (2f) (11) | K11: 43564 | M11: 41633
B12: Sachanlagen | I12: (2g) (12) | K12: 66521 | M12: 65049
B13: At-Equity Beteiligungen | I13: (15) | K13: 6338 | M13: 0
B14: Ausleihungen an At-Equity Beteiligungen | K14: 7635 | M14: 0
B15: Beteiligungen | K15: 124 | M15: 124
B16: Latente Ertragsteuern | I16: (2i) (13) | K16: 73704 | M16: 65941
B17: Langfristige Forderungen aus Lieferungen und Leistungen | I17: (16) | K17: 15453 | M17: 10161
B18: Sonstige langfristige Vermögenswerte | I18: (2h) (14) | K18: 1504 | M18: 1471
B20: Langfristige Vermögenswerte | K20: =SUM(K8:K19) -> 380199 | M20: =SUM(M8:M19) -> 343255
B22: Vorräte | I22: (2j) (15) | K22: 208481 | M22: 172402
B23: Forderungen aus Lieferungen und Leistungen | I23: (16) | K23: 159245 | M23: 142607
B24: Forderungen gegen nahe stehende Unternehmen | I24: (2t) (32) | K24: 70810 | M24: 57103
B25: Forderungen aus Finanzausgleich | I25: (2t) (32) | K25: 261879 | M25: 290614
B26: Steuererstattungsansprüche | K26: 1602 | M26: 3670
B27: Sonstige kurzfristige finanzielle Vermögenswerte | I27: (2h) (17) | K27: 3543 | M27: 3141
B28: Sonstige kurzfristige nicht-finanzielle Vermögenswerte | I28: (18) | K28: 18439 | M28: 15591
B29: Wertpapiere | I29: (2i)
B30: Liquide Mittel mit Verfügungsbeschränkung | I30: (12)
B31: Zahlungsmittel und Zahlungsmitteläquivalente | I31: (2l) (19) | K31: 9444 | M31: 10727
B33: Kurzfristige Vermögenswerte | K33: =SUM(K22:K31) -> 733443 | M33: =SUM(M22:M31) -> 695855
B35: Bilanzsumme | K35: =+K33+K20 -> 1113642 | M35: =+M33+M20 -> 1039110
B37: PASSIVA
B38: Gezeichnetes Kapital | I38: (20) | K38: 81310 | M38: 81310
B39: Kapitalrücklage | I39: (20) | K39: 313863 | M39: 313863
B40: Gewinnrücklagen | I40: (20) | K40: 380906 | M40: 361130
B41: Eigene Anteile | I41: (12)
B42: Sonstige Bestandteile des Eigenkapitals | I42: (2m) (20) | K42: -25180 | M42: -41031
B44: Eigenkapital ohne Anteile nicht-beherrschender Gesellschafter | K44: =SUM(K38:K42) -> 750899 | M44: =SUM(M38:M42) -> 715272
B45: Ausgleichsposten für Anteile nicht-beherrschender Gesellschafter | I45: (20) | K45: 41967 | M45: 38955
B47: Eigenkapital | K47: =SUM(K44:K45) -> 792866 | M47: =SUM(M44:M45) -> 754227
B49: Pensionsrückstellungen und ähnliche Verpflichtungen | I49: (2n) (21) | K49: 61444 | M49: 48888
B50: Andere langfristige Rückstellungen | I50: (2o) (22) | K50: 3567 | M50: 3911
B51: Langfristige finanzielle Verbindlichkeiten | I51: (23) | K51: 2604 | M51: 1588
B52: Langfristige Leasingverbindlichkeiten | I52: (2k) (27) | K52: 9639 | M52: 10415
B53: Langfristige Verbindlichkeiten aus Ertragsteuern
B54: Sonstige langfristige nicht-finanzielle Verbindlichkeiten | K54: 7722 | M54: 7596
B55: Latente Ertragsteuern | I55: (2i) (13) | K55: 13668 | M55: 12402
B57: Langfristige Schulden | K57: =SUM(K49:K56) -> 98644 | M57: =SUM(M49:M56) -> 84800
B59: Kurzfristige Rückstellungen | I59: (2o) (22) | K59: 19970 | M59: 26901
B60: Kurzfristige abgegrenzte Verbindlichkeiten | I60: (24) | K60: 69016 | M60: 60576
B61: Kurzfristige finanzielle Verbindlichkeiten | I61: (2h) | K61: 7976 | M61: 13435
B62: Kurzfristiger Anteil langfristiger finanzieller Verbindlichkeiten | I62: (23) | K62: 488 | M62: 477
B63: Kurzfristiger Anteil langfristiger Leasingverbindlichkeiten | I63: (2k) (27) | K63: 2762 | M63: 2359
B64: Verbindlichkeiten aus Lieferungen und Leistungen | K64: 33388 | M64: 33421
B65: Kurzfristige Verbindlichkeiten aus Ertragsteuern | K65: 4331 | M65: 7741
B66: Verbindlichkeiten gegenüber nahe stehenden Unternehmen | I66: (2t) (32) | K66: 16626 | M66: 16527
B67: Verbindlichkeiten aus Finanzausgleich | I67: (2t) (32) | K67: 30519 | M67: 8022
B68: Sonstige kurzfristige nicht-finanzielle Verbindlichkeiten | I68: (25) | K68: 37056 | M68: 30624
B70: Kurzfristige Schulden | K70: =SUM(K59:K68) -> 222132 | M70: =SUM(M59:M68) -> 200083
B72: Bilanzsumme | K72: =+K70+K57+K47 -> 1113642 | M72: =+M70+M57+M47 -> 1039110
K73: =+K72-K35 -> 0 | M73: =+M72-M35 -> 0
B78: Der nachfolgende Konzernanhang ist integraler Bestandteil des ungeprüften Konzernabschlusses.

Sheet Bilanzanalyse (hidden)
A1: Abw. Dec./ Sep | C1: Begründung | D1: davon erklärt | E1: Differenz
A2: ='Bila D'!Q10 -> 0 | B2: Geschäfts- oder Firmenwert | C2: Zugang IMEX 7,432 Mio. | D2: =7432 -> 7432 | E2: =A2-D2 -> -7432
A3: ='Bila D'!Q11 -> 0 | B3: Immaterielle Vermögenswerte | C3: Zugang IMEX 5,551 Mio.
A4: ='Bila D'!Q12 -> 0 | B4: Sachanlagen | C4: Zugang CZM AG 4,0 Mio. vor Afa (hauptsächlich Olymp ca. 3,2 Mio.); Übernahme Mietgeräte bei CZM VG aus Umlaufvermögen (+1,2 Mio.)
A5: ='Bila D'!Q23 -> 0 | B5: Forderungen aus Lieferungen und Leistungen | C5: hierin enthalten 2,9 Mio. Alcon-Lizenzen, Cash-Zahlung erfolgt erst im Januar
A6: ='Bila D'!Q24 -> 0 | B6: Forderungen gegen nahe stehende Unternehmen | C6: v.a. Umsatzanstieg Q1 CZM AG (Umsatz je Quartal: GJ 10/11 --> 113 Mio., Q1 11/12 --> 141 Mio.)
A7: ='Bila D'!Q27 -> 0 | B7: Sonstige kurzfristige finanzielle Vermögenswerte | C7: Anstieg aus CZM Inc. aufgrund der Umgliederung der Kreditkartenforderungen von kurzf. Nicht-finanz. Vw in kurzf. Finanz. Vermögenswerte (+1,3 Mio.). Anstieg CZM AG (+0,3 Mio.) für Zinsabgrenzungen (COBA + HVB) | D7: =1300+300 -> 1600 | E7: =A7-D7 -> -1600
A8: ='Bila D'!Q28 -> 0 | B8: Sonstige kurzfristige nicht-finanzielle Vermögenswerte | C8: Kompensation des Umgliederungseffektes USA durch CZM F (+0,6 Mio., u.a. UST, ARAP), CZM AG (+0,4 Mio.)
A9: 1207 | B9: Andere langfristige Rückstellungen | C9: IMEX earn out Anteil +2,218 Mio.; Kompensation durch CZM AG (-915 TEUR ATZ, -142 TEUR Verbrauch ERA RST und sonstiges) | D9: =(2.218-0.915-0.142)*1000 -> 1161 | E9: 46
A10: ='Bila D'!Q59 -> 0 | B10: Kurzfristige Rückstellungen | C10: IMEX earn out Anteil +2,149 Mio., Abgrenzung KöSteuer +1,5 Mio. (CZM AG), RST für Gewährleistungen pauschal +0,55 Mio. (CZM AG), Konzernrückstellung Q1 für Projekttehmen +0,85 Mio., Auflösung RST für Bonuszahlung im Dezember + RST-Bildung für geschätzte Logistikosten (CZM Japan), Zuführung RST CZM Inc. für Ferien, Warenrückgabe und Gewährleistung | D10: =(2.149+1.5+0.55+0.85)*1000 -> 5049 | E10: -5049
A11: ='Bila D'!Q60 -> 0 | B11: Kurzfristige abgegrenzte Verbindlichkeiten | C11: Auszahlung Renumeration für FY 10/11 CZM VG -0,8 Mio. (hier auch Reduzierung RST für ausstehende Rechnung enthalten) und USA -3,1 Mio. (u.a. MBO-Bonus, Super-Bonus); z.T. Kompensation/ Anstieg durch unterjährige Rechnungsabgrenzungen + Risiken CZM AG +1,36 Mio. (davon 0,6 Mio. Konzern-RST bzw. 0,3 Mio. CZM-Verbundene, die im Konzern wieder eliminiert werden); CZM SAS + FCI -04 Mio. Rückgang Personalverbindlichkeiten aufgrund erfolgter Bonuszahlung im Dez 11 | D11: =(-0.8-3.1+1.36-0.3-0.4)*1000 -> -3240 | E11: 3240
A12: ='Bila D'!Q61 -> 0 | B12: Kurzfristige finanzielle Verbindlichkeiten | C12: Devisentermingeschäfte CZM AG +3,3 Mio. EUR, Reduzierung ausstehende Checks USA aufgrund von Lieferantenzahlungen -0,6 Mio. | D12: =(3.3-0.6)*1000 -> 2700 | E12: -2700
A13: ='Bila D'!Q64 -> 0 | B13: Verbindlichkeiten aus Lieferungen und Leistungen | C13: CZM AG: Umstellung Lieferantenzahlungen auf tägliche Zahlungen nach Fälligkeit ab Q1 2012 (-3,9 Mio.)
A14: ='Bila D'!Q68 -> 0 | B14: Sonstige kurzfristige nicht-finanzielle Verbindlichkeiten | C14: CZM AG: Lohnsteuerverbindlichkeiten +2,0 Mio. (Prämienzahlung 31.12.) , Lizenzen Alcon +2,2 Mio. Erhaltene Anzahlungen -1,0 Mio., CZM VG: Erhöhung "erhaltene Anzahlungen" und Lohnsteuerverbindlichkeiten zum 31.12. (+0,6 Mio.) CZM Inc: Service-RST (+0,5 Mio.), abgegrenzter Service-Ertrag (+0,4 Mio.) CZM Japan: Bonuszahlung Dez 11 (+0,4 Mio.), Kundenvorauszahlungen OPMI Lumera + Vario (+0,5 Mio.), U-Anteil soziale Sicherheit (+0,2 Mio.) CZM Spanien: abgegrenter Ertrag (+0,3 Mio.) | D14: =(2+2.2-1+0.6+0.5+0.4+0.4+0.5+0.2+0.3)*1000 -> 6100 | E14: -6100
